bitfinex/quotes_BTCUSD_20250624
["timestamp","ask_amount","ask_price","bid_price","bid_amount"]
[1750771186836,1.2040375,105420.0,105410.0,0.15]
[1750771187036,0.55302801,105400.0,105390.0,0.2]
[1750771187284,0.5435597,105390.0,105380.0,0.34772]
[1750771187482,1.2040942,105390.0,105380.0,0.34550186]
[1750771187847,1.2013342,105390.0,105380.0,0.34550186]
[1750771188046,1.2013342,105390.0,105380.0,0.24550186]
[1750771188299,0.01898009,105370.0,105360.0,0.1]
[1750771188500,1.06906212,105370.0,105360.0,0.35]
[1750771188718,1.08360297,105370.0,105360.0,0.10004608]
[1750771188918,0.20882706,105350.0,105340.0,0.3522]
[1750771189098,0.72480175,105350.0,105340.0,0.3522]
[1750771189306,0.19933204,105360.0,105340.0,0.44774795]
[1750771189615,0.55831868,105350.0,105340.0,0.50224609]
[1750771189821,0.54882634,105350.0,105340.0,0.79490795]
[1750771190022,0.56781012,105350.0,105340.0,0.89490795]
[1750771190224,0.57730219,105350.0,105340.0,0.69774795]
[1750771190454,1.06480211,105350.0,105340.0,0.15224609]
[1750771190668,1.5807768,105350.0,105340.0,0.00224609]
[1750771190890,0.54886673,105330.0,105320.0,0.352]
[1750771191123,1.06484142,105330.0,105320.0,0.352]
[1750771191559,0.20890639,105310.0,105300.0,0.002]
[1750771191778,0.72488108,105310.0,105300.0,0.002]
[1750771193070,1.19805231,105310.0,105300.0,0.002]
[1750771193278,1.19805231,105310.0,105280.0,0.0022]
[1750771193279,1.06492076,105290.0,105280.0,0.0022]
[1750771193492,1.24228625,105290.0,105260.0,0.34510182]
[1750771193762,1.05546154,105270.0,105260.0,0.15]
[1750771193975,0.00950091,105250.0,105240.0,0.54852]
[1750771194183,0.21852648,105250.0,105240.0,0.54750186]
[1750771194391,0.72500017,105250.0,105240.0,0.64394186]
[1750771194608,0.20902512,105250.0,105240.0,0.64394186]
[1750771194817,0.21852621,105250.0,105240.0,0.64394186]
[1750771195023,0.20902512,105250.0,105240.0,0.74394186]
[1750771195260,0.28499537,105250.0,105240.0,0.24250182]
[1750771195481,0.20906557,105230.0,105220.0,0.39824]
[1750771195691,0.21856703,105230.0,105220.0,0.49374186]
[1750771195895,0.74404498,105230.0,105220.0,0.49374186]
[1750771196110,0.72503999,105230.0,105220.0,0.49374186]
[1750771196333,0.71553736,105230.0,105220.0,0.49354186]
[1750771196558,0.22874303,105230.0,105220.0,0.49354186]
[1750771196767,0.19005986,105230.0,105220.0,0.50934186]
[1750771196978,0.20906485,105230.0,105220.0,0.50934186]
[1750771197194,0.53958164,105220.0,105210.0,0.1502]
[1750771197411,1.05555633,105220.0,105210.0,0.0002]
[1750771197667,0.22811353,105210.0,105200.0,0.39792]
[1750771197886,0.72507999,105210.0,105200.0,0.49342186]
[1750771198115,0.20914471,105190.0,105180.0,0.5959]
[1750771198336,1.06511886,105190.0,105180.0,0.87138186]
[1750771198567,0.55865059,105190.0,105180.0,0.82864005]
[1750771198793,0.57770107,105190.0,105180.0,0.82864005]
[1750771199019,1.08416934,105190.0,105180.0,0.81959457]
[1750771199236,1.08416934,105190.0,105180.0,0.62351457]
[1750771199458,1.08416934,105190.0,105180.0,0.81000753]
[1750771199459,0.58786877,105190.0,105180.0,0.81000753]
[1750771199671,0.58720668,105190.0,105180.0,0.81000753]
[1750771199880,0.57770071,105190.0,105180.0,0.81950049]
[1750771200092,0.57770017,105190.0,105180.0,0.80999345]
[1750771200312,0.57770071,105190.0,105180.0,0.80999345]
[1750771200532,1.0936754,105190.0,105180.0,0.35898455]
[1750771200751,1.0936754,105190.0,105180.0,0.55530455]
[1750771200972,1.0946754,105190.0,105180.0,0.55879751]
[1750771201186,0.60735018,105190.0,105180.0,0.55879751]
[1750771201424,1.1525055,105190.0,105180.0,0.53009047]
[1750771201640,1.1525055,105190.0,105180.0,0.23046156]
[1750771201858,1.1525055,105190.0,105180.0,0.22658156]
[1750771202067,1.1525055,105190.0,105180.0,0.20007452]
[1750771202272,1.1525055,105190.0,105180.0,0.21907452]
[1750771202484,1.1525055,105190.0,105180.0,0.20956748]
[1750771202705,0.63653081,105190.0,105180.0,0.019]
[1750771202939,1.12332487,105190.0,105180.0,0.10499482]
[1750771203173,1.1525055,105190.0,105180.0,0.30083482]
[1750771203856,0.5491843,105170.0,105160.0,0.152]
[1750771204080,0.53016829,105170.0,105160.0,0.37914016]
[1750771204293,0.05820547,105190.0,105180.0,0.22145021]
[1750771204575,0.001,105190.0,105180.0,1.75724819]
[1750771204794,0.002,105210.0,105200.0,1.11863008]
[1750771205002,0.002,105210.0,105200.0,2.29950748]
[1750771205208,0.002,105210.0,105200.0,2.31665914]
[1750771206096,0.0024594,105210.0,105200.0,2.29950748]
[1750771206303,0.0024594,105210.0,105200.0,2.41004287]
[1750771206531,0.0114594,105210.0,105200.0,2.41004287]
[1750771207808,0.0144594,105210.0,105200.0,2.24370187]
[1750771208031,0.0144594,105210.0,105200.0,1.89668136]
[1750771208243,0.0244594,105210.0,105200.0,2.50602187]
[1750771208909,0.0244594,105210.0,105200.0,2.24370187]
[1750771209154,0.0244594,105210.0,105200.0,2.50614187]
[1750771210219,0.0244594,105210.0,105200.0,2.84614187]
[1750771210432,0.0244594,105210.0,105200.0,1.74996136]
[1750771210660,0.1004292,105210.0,105200.0,1.75858936]
[1750771211147,0.1004292,105210.0,105200.0,2.36792987]
[1750771212027,0.1004292,105210.0,105200.0,1.75858936]
[1750771212251,0.1004292,105210.0,105200.0,2.36792987]
[1750771212667,0.1004292,105210.0,105200.0,1.49298936]
[1750771212883,0.1004292,105210.0,105200.0,2.33869125]
[1750771214581,0.1004292,105210.0,105200.0,2.33891075]
[1750771215188,0.09116255,105210.0,105200.0,2.33803075]
[1750771215402,0.09116255,105210.0,105200.0,1.23665024]
[1750771215608,0.09116255,105210.0,105200.0,1.72849024]
[1750771215812,0.09116255,105210.0,105200.0,1.72858704]
[1750771216205,0.09116255,105210.0,105200.0,1.72850704]
[1750771217455,0.09116255,105210.0,105200.0,1.72856615]
[1750771218006,0.09116255,105210.0,105200.0,1.72857583]
[1750771219069,0.10066662,105210.0,105200.0,1.21280369]
[1750771219294,0.3097712,105210.0,105200.0,0.81280369]
[1750771219551,0.64026758,105210.0,105200.0,0.86801868]
[1750771219763,0.63408833,105210.0,105200.0,1.06361868]
[1750771220008,0.63408833,105210.0,105200.0,1.06357868]
[1750771220242,0.63408833,105210.0,105200.0,1.06358224]
[1750771220462,0.63408833,105210.0,105200.0,0.76810224]
[1750771220702,1.24342884,105210.0,105200.0,0.96252884]
[1750771220925,1.24342884,105210.0,105200.0,0.96248884]
[1750771221142,1.24342884,105210.0,105200.0,0.97348884]
[1750771221353,0.63408833,105210.0,105200.0,0.97348884]
[1750771221822,0.62507483,105210.0,105200.0,0.97348884]
[1750771222050,1.23441534,105210.0,105200.0,0.26554698]
[1750771222253,1.23541534,105210.0,105200.0,0.54462698]
[1750771222638,1.23541534,105210.0,105200.0,0.51662698]
[1750771222839,1.23741534,105210.0,105200.0,0.54462698]
[1750771223047,1.23741534,105210.0,105200.0,0.54470839]
[1750771223255,1.23641534,105210.0,105200.0,0.52970839]
[1750771223602,1.23541534,105210.0,105200.0,0.51670839]
[1750771223827,1.23541534,105210.0,105200.0,0.52970839]
[1750771224043,0.62607483,105210.0,105200.0,0.52970839]
[1750771224485,0.62607483,105210.0,105200.0,0.71098632]
[1750771224697,0.62607483,105210.0,105200.0,0.72049184]
[1750771224920,0.36100904,105210.0,105200.0,1.04800411]
[1750771225137,0.56060973,105210.0,105200.0,1.03849904]
[1750771225354,0.37051374,105210.0,105200.0,1.05750936]
[1750771225569,0.36100904,105210.0,105200.0,1.05750936]
[1750771225837,0.56060973,105210.0,105200.0,1.05751178]
[1750771226046,0.56060973,105210.0,105200.0,1.04800671]
[1750771226234,0.37051374,105210.0,105200.0,1.02082678]
[1750771226450,0.57011452,105210.0,105200.0,1.28800311]
[1750771226865,0.56061009,105210.0,105200.0,1.2689927]
[1750771227438,0.55110548,105210.0,105200.0,1.25948718]
[1750771227646,0.54160078,105210.0,105200.0,1.26899288]
[1750771227847,0.54160078,105210.0,105200.0,1.27849849]
[1750771228068,0.54160078,105210.0,105200.0,1.2785006]
[1750771228306,0.54160078,105210.0,105200.0,1.27850042]
[1750771228537,0.54160078,105210.0,105200.0,1.28800576]
[1750771228689,1.05929469,105210.0,105200.0,1.28800576]
[1750771229062,0.87870214,105210.0,105200.0,1.29751101]
[1750771229179,0.87870214,105210.0,105200.0,1.30701617]
[1750771229391,0.88820648,105210.0,105200.0,1.28800531]
[1750771229592,0.87870205,105210.0,105200.0,1.29751038]
[1750771229816,0.342,105210.0,105200.0,1.29751038]
[1750771230073,0.370549,105210.0,105200.0,1.33041038]
[1750771230200,0.38005298,105210.0,105200.0,1.33041038]
[1750771230401,0.370549,105210.0,105200.0,1.33041322]
[1750771230602,0.370549,105210.0,105200.0,1.58041322]
[1750771230802,0.342,105210.0,105200.0,1.58041322]
[1750771231619,0.34,105210.0,105200.0,1.56741322]
[1750771231979,0.11598032,105230.0,105220.0,0.36858852]
[1750771232162,0.11598032,105230.0,105220.0,0.67432677]
[1750771232163,1.20178308,105230.0,105220.0,0.67432677]
[1750771232365,1.20178308,105230.0,105220.0,0.68383012]
[1750771232695,1.19228009,105230.0,105220.0,0.6553198]
[1750771232894,1.19228009,105230.0,105220.0,0.26317807]
[1750771232895,1.16377247,105230.0,105220.0,0.26317807]
[1750771233100,0.54910494,105210.0,105200.0,0.3991383]
[1750771233311,0.20914471,105190.0,105180.0,0.152]
[1750771233542,0.20916477,105180.0,105170.0,0.06488]
[1750771233748,0.71735145,105180.0,105170.0,0.07373199]
[1750771233976,0.71735145,105180.0,105170.0,0.0653394]
[1750771234148,0.82188225,105180.0,105170.0,0.0653394]
[1750771234706,0.22821854,105180.0,105170.0,0.35100955]
[1750771234922,0.7554195,105180.0,105170.0,0.31084126]
[1750771235365,0.8313893,105180.0,105170.0,0.24596126]
[1750771235565,0.8333893,105180.0,105170.0,0.24596126]
[1750771235914,0.8333893,105180.0,105170.0,0.25396126]
[1750771236688,0.8333893,105180.0,105170.0,0.0084594]
[1750771237098,0.82388225,105180.0,105170.0,0.0084594]
[1750771237319,0.23021854,105180.0,105170.0,0.19862769]
[1750771237463,0.04957538,105180.0,105170.0,0.81314592]
[1750771237671,0.74791245,105180.0,105170.0,0.79412955]
[1750771238006,0.74791245,105180.0,105170.0,0.60396126]
[1750771238831,0.74791245,105180.0,105170.0,0.3084594]
[1750771239368,0.74791245,105180.0,105170.0,0.1584594]
[1750771239597,1.08791245,105180.0,105170.0,0.1584594]
[1750771239804,1.08791245,105180.0,105170.0,0.16729451]
[1750771240469,1.1886824,105180.0,105170.0,0.01729451]
[1750771240676,0.53967652,105170.0,105160.0,0.0022]
[1750771240913,0.83483608,105170.0,105160.0,0.00233843]
[1750771241126,1.32522023,105170.0,105160.0,0.00233843]
[1750771241774,0.53969551,105160.0,105150.0,0.06512]
[1750771241984,0.53969551,105160.0,105150.0,0.06520749]
[1750771241985,1.57508333,105160.0,105150.0,0.06520749]
[1750771242418,0.1997145,105150.0,105140.0,0.0022]
[1750771242638,1.42670232,105150.0,105140.0,0.00224604]
[1750771243076,1.42662232,105150.0,105140.0,0.00224604]
[1750771243976,0.93749741,105150.0,105140.0,0.00224604]
[1750771245048,0.93849741,105150.0,105140.0,0.00924604]
[1750771245677,0.93849741,105150.0,105140.0,0.01724604]
[1750771247552,0.74697741,105150.0,105140.0,0.01724604]
[1750771247760,0.93797741,105150.0,105140.0,0.01724604]
[1750771247972,0.93789741,105150.0,105140.0,0.01724604]
[1750771248181,0.001,105150.0,105140.0,0.70619207]
[1750771248388,0.02001954,105150.0,105140.0,0.70619225]
[1750771248595,0.03903907,105150.0,105140.0,0.6966814]
[1750771248809,1.32158198,105150.0,105140.0,0.4627479]
[1750771249227,1.32158198,105150.0,105140.0,0.2627479]
[1750771249859,1.32158198,105150.0,105140.0,0.01724604]
[1750771250084,0.80388807,105150.0,105140.0,0.01724604]
[1750771250510,0.80388807,105150.0,105140.0,0.16724604]
[1750771250998,0.80388807,105150.0,105140.0,0.18334604]
[1750771251218,0.80388807,105150.0,105140.0,0.16724604]
[1750771252456,0.80388807,105150.0,105140.0,0.48727046]
[1750771253255,0.80388807,105150.0,105140.0,0.2970479]
[1750771253461,0.79437821,105150.0,105140.0,0.2970479]
[1750771253659,0.79437821,105150.0,105140.0,0.49678149]
[1750771253886,0.79437821,105150.0,105140.0,0.50629234]
[1750771254125,0.01050977,105150.0,105140.0,0.50629234]
[1750771254331,0.54722321,105150.0,105140.0,0.87531359]
[1750771254670,0.54722312,105150.0,105140.0,0.87531359]
[1750771254854,0.54722312,105150.0,105140.0,1.06455359]
[1750771255079,0.55673316,105150.0,105140.0,1.06455359]
[1750771255274,0.74693762,105150.0,105140.0,1.0550431]
[1750771255490,0.70889837,105150.0,105140.0,0.6362879]
[1750771256322,0.19120446,105150.0,105140.0,0.79221046]
[1750771256526,0.70889837,105150.0,105140.0,0.62998149]
[1750771256726,0.70889837,105150.0,105140.0,0.4302479]
[1750771257344,0.70889837,105150.0,105140.0,0.4277679]
[1750771258404,0.70889837,105150.0,105140.0,0.61799046]
[1750771258659,0.70889837,105150.0,105140.0,0.4102679]
[1750771260373,1.30256208,105150.0,105140.0,0.16476604]
[1750771261015,0.78486817,105150.0,105140.0,0.16476604]
[1750771262333,1.64256208,105150.0,105140.0,0.16476604]
[1750771262553,1.64256208,105150.0,105130.0,0.0161636]
[1750771262554,0.5397335,105140.0,105130.0,0.0161636]
[1750771262792,0.5397715,105120.0,105110.0,0.0002]
[1750771263009,0.19979051,105110.0,105100.0,0.1522]
[1750771263254,0.71748442,105110.0,105100.0,0.34249495]
[1750771263476,0.73651146,105110.0,105100.0,0.48005769]
[1750771263696,0.72699817,105110.0,105100.0,0.280248]
[1750771264363,0.72699817,105110.0,105100.0,0.18474614]
[1750771265504,0.72699817,105110.0,105100.0,0.38755565]
[1750771265924,0.7174846,105110.0,105100.0,0.37804109]
[1750771266189,0.7174846,105110.0,105100.0,0.18774614]
[1750771266481,0.36798723,105110.0,105100.0,0.65208609]
[1750771266948,0.88568114,105110.0,105100.0,0.65208609]
[1750771267372,0.34,105110.0,105100.0,0.65208609]
[1750771267583,0.88622818,105130.0,105120.0,0.55239646]
[1750771267815,0.8767166,105130.0,105120.0,0.89517832]
[1750771268019,0.89573966,105130.0,105120.0,0.89517832]
[1750771268228,0.88622808,105130.0,105120.0,0.89517832]
[1750771268439,0.90525151,105130.0,105120.0,0.89517832]
[1750771268648,0.89573966,105130.0,105120.0,0.89517832]
[1750771268855,0.90625142,105130.0,105120.0,0.89517832]
[1750771269060,0.90625197,105130.0,105120.0,0.89517832]
[1750771269482,1.08698178,105130.0,105120.0,0.8951785]
[1750771269702,1.11546026,105130.0,105120.0,0.8951785]
[1750771269887,0.92521961,105130.0,105120.0,0.9046908]
[1750771270187,0.90619527,105130.0,105120.0,0.9076908]
[1750771270408,0.90619508,105130.0,105120.0,0.9076908]
[1750771270624,0.91570666,105130.0,105120.0,0.9076908]
[1750771270837,0.38850117,105130.0,105120.0,1.0576908]
[1750771271058,0.91570656,105130.0,105120.0,1.1576908]
[1750771271274,0.88717239,105130.0,105120.0,1.1576908]
[1750771271498,0.36947848,105130.0,105120.0,0.9104108]
[1750771271736,0.37798969,105130.0,105120.0,1.1570108]
[1750771271954,0.38850099,105130.0,105120.0,1.1620108]
[1750771272167,0.40752405,105130.0,105120.0,1.1590108]
[1750771272380,0.40852405,105130.0,105120.0,1.1650108]
[1750771272805,0.39901238,105130.0,105120.0,1.1650108]
[1750771273036,0.41803553,105130.0,105120.0,1.1650108]
[1750771273260,0.41803608,105130.0,105120.0,1.1650108]
[1750771274362,0.92621896,105130.0,105120.0,1.1650108]
[1750771274596,0.91670702,105130.0,105120.0,1.1650108]
[1750771275805,0.92621887,105130.0,105120.0,1.1650108]
[1750771276640,0.91670702,105130.0,105120.0,1.1650108]
[1750771276995,0.92621887,105130.0,105120.0,1.1650108]
[1750771277635,1.1259721,105130.0,105120.0,1.13647345]
[1750771277839,1.11646062,105130.0,105120.0,1.15549868]
[1750771278064,1.11646062,105130.0,105120.0,1.16501107]
[1750771278475,1.11646062,105130.0,105120.0,1.17452355]
[1750771278688,0.90719563,105130.0,105120.0,1.17452301]
[1750771278894,0.90719508,105130.0,105120.0,1.17452301]
[1750771279094,0.92621869,105130.0,105120.0,1.17100301]
[1750771279297,1.11645934,105130.0,105120.0,1.17100301]
[1750771279703,0.92621869,105130.0,105120.0,1.17100301]
[1750771279904,0.9262186,105130.0,105120.0,1.17100301]
[1750771280117,1.11645998,105130.0,105120.0,1.16149071]
[1750771281373,1.11645998,105130.0,105120.0,1.15197832]
[1750771281787,1.11645998,105130.0,105120.0,1.16149071]
[1750771282201,1.09743683,105130.0,105120.0,0.69010186]
[1750771282404,1.09743683,105130.0,105120.0,0.93246186]
[1750771282631,1.09743683,105130.0,105120.0,1.13223354]
[1750771282835,1.08792498,105130.0,105120.0,0.69010186]
[1750771283045,1.08792498,105130.0,105120.0,0.29464]
[1750771283664,1.08792498,105130.0,105120.0,0.29444]
[1750771283866,1.08792498,105130.0,105120.0,0.29436]
[1750771284480,1.08792498,105130.0,105120.0,0.111]
[1750771284690,0.55431235,105120.0,105110.0,0.01693273]
[1750771284894,1.07200626,105120.0,105110.0,0.01693273]
[1750771285444,1.07200626,105120.0,105100.0,0.00224614]
[1750771285445,0.5448177,105110.0,105090.0,0.0002]
[1750771285659,0.53982853,105090.0,105080.0,0.2025]
[1750771285878,1.06703782,105090.0,105080.0,0.42926382]
[1750771286091,1.09562382,105090.0,105080.0,0.41979377]
[1750771286307,0.57792991,105090.0,105080.0,0.42931014]
[1750771286517,1.06703782,105090.0,105080.0,0.42931014]
[1750771286689,1.06703782,105090.0,105080.0,0.43882642]
[1750771286932,1.06703782,105090.0,105080.0,0.41027731]
[1750771287151,1.06703782,105090.0,105080.0,0.68432774]
[1750771287152,0.36854568,105090.0,105080.0,0.68432774]
[1750771287378,0.34,105090.0,105080.0,0.93432774]
[1750771287610,0.34,105090.0,105080.0,1.08432774]
[1750771288259,0.34,105090.0,105080.0,1.33432774]
[1750771288792,0.341,105090.0,105080.0,1.33732774]
[1750771289530,0.002,105130.0,105120.0,1.00149646]
[1750771289751,0.002,105130.0,105120.0,1.87541122]
[1750771289966,0.002,105130.0,105120.0,2.44381122]
[1750771290181,0.002,105150.0,105140.0,1.11875484]
[1750771290361,0.002,105150.0,105140.0,1.44993569]
[1750771291023,0.002,105150.0,105140.0,1.9676296]
[1750771291236,0.002,105170.0,105160.0,1.13325408]
[1750771291440,0.00213778,105170.0,105160.0,1.60391594]
[1750771292475,0.00213778,105170.0,105160.0,2.12160985]
[1750771293107,0.01413778,105170.0,105160.0,2.12260985]
[1750771293531,0.012,105170.0,105160.0,2.12260985]
[1750771293741,0.0001,105180.0,105170.0,0.26623329]
[1750771293948,0.0001,105180.0,105170.0,0.69009515]
[1750771294153,0.0001,105180.0,105170.0,1.44998906]
[1750771296019,0.0301,105180.0,105170.0,1.45679506]
[1750771296489,0.0301,105180.0,105170.0,1.45631506]
[1750771297113,0.0301,105180.0,105170.0,1.84631506]
[1750771297309,0.0127,105180.0,105170.0,1.84631506]
[1750771297726,0.002,105190.0,105180.0,1.25157164]
[1750771297925,0.002,105190.0,105180.0,1.86476741]
[1750771298135,0.002,105190.0,105180.0,2.21930826]
[1750771298899,0.002,105190.0,105180.0,1.70161435]
[1750771299167,0.002,105190.0,105180.0,2.21930826]
[1750771299370,0.002,105190.0,105180.0,2.22130826]
[1750771299572,0.007,105190.0,105180.0,2.22130826]
[1750771301341,0.007,105190.0,105180.0,2.46002826]
[1750771301964,0.007,105190.0,105180.0,2.45802826]
[1750771302178,0.007,105190.0,105180.0,2.48591936]
[1750771302498,0.006,105190.0,105180.0,2.48591936]
[1750771302831,0.007,105190.0,105180.0,2.48591936]
[1750771303044,0.007,105190.0,105180.0,2.51446136]
[1750771303256,0.01,105190.0,105180.0,2.56446136]
[1750771303924,0.0001,105200.0,105190.0,1.17408562]
[1750771304193,0.0001,105200.0,105190.0,1.55106748]
[1750771305884,0.0001,105200.0,105190.0,1.55189357]
[1750771306336,0.0021,105200.0,105190.0,2.32653748]
[1750771307031,0.0021,105200.0,105190.0,2.32657748]
[1750771307250,0.0021,105200.0,105190.0,2.08861748]
[1750771307455,0.0021,105200.0,105190.0,2.32633748]
[1750771309576,0.0021,105200.0,105190.0,2.32621748]
[1750771310018,0.0041,105200.0,105190.0,2.32621748]
[1750771311121,0.0041,105200.0,105190.0,2.30718748]
[1750771311333,0.0041,105200.0,105190.0,2.27358748]
[1750771311547,0.0041,105200.0,105190.0,1.75589357]
[1750771311773,0.0041,105200.0,105190.0,2.27358748]
[1750771311996,0.0041,105200.0,105190.0,2.29098748]
[1750771312971,0.0041,105200.0,105190.0,2.29082748]
[1750771313595,0.0041,105200.0,105190.0,2.30772748]
[1750771314375,0.0041,105200.0,105190.0,2.30756748]
[1750771314968,0.0041,105200.0,105190.0,2.31166748]
[1750771315459,0.0041,105200.0,105190.0,2.27692748]
[1750771316520,0.0041,105200.0,105190.0,1.52279357]
[1750771316706,0.0041,105200.0,105190.0,1.41899357]
[1750771317505,0.0021,105200.0,105190.0,1.41899357]
[1750771317992,0.0061,105200.0,105190.0,1.41899357]
[1750771318193,0.0041,105200.0,105190.0,1.41899357]
[1750771318347,0.0041,105200.0,105190.0,1.18279357]
[1750771318557,0.0071,105200.0,105190.0,1.18279357]
[1750771318763,0.0071,105200.0,105190.0,1.41871357]
[1750771319521,0.0071,105200.0,105190.0,1.93640748]
[1750771321088,0.0071,105200.0,105190.0,1.97230748]
[1750771321298,0.0071,105200.0,105190.0,2.31230748]
[1750771321507,0.0071,105200.0,105190.0,2.36230748]
[1750771322765,0.0071,105200.0,105190.0,2.51230748]
[1750771326716,0.0071,105200.0,105190.0,2.51546748]
[1750771326956,0.0071,105200.0,105190.0,1.75869357]
[1750771327181,0.0071,105200.0,105190.0,2.44746748]
[1750771327837,0.0071,105200.0,105190.0,1.92977357]
[1750771328052,0.0071,105200.0,105190.0,2.44746748]
[1750771328452,0.0071,105200.0,105190.0,2.20838748]
[1750771328672,0.0071,105200.0,105190.0,2.44738748]
[1750771331959,0.0071,105200.0,105190.0,2.46438748]
[1750771332381,0.0071,105200.0,105190.0,1.94669357]
[1750771332585,0.0071,105200.0,105190.0,2.46438748]
[1750771333516,0.0071,105200.0,105190.0,2.44738748]
[1750771334760,0.0071,105200.0,105190.0,1.92969357]
[1750771334960,0.0071,105200.0,105190.0,2.44738748]
[1750771335751,0.0071,105200.0,105190.0,2.46458748]
[1750771337026,0.0071,105200.0,105190.0,2.42800748]
[1750771340316,0.0071,105200.0,105190.0,0.97279357]
[1750771340530,0.0071,105200.0,105190.0,1.56333272]
[1750771340748,0.0237,105200.0,105190.0,1.74289272]
[1750771340952,0.0237,105200.0,105190.0,1.75743357]
[1750771341825,0.0237,105200.0,105190.0,1.18279357]
[1750771342029,0.0405,105200.0,105190.0,1.41747357]
[1750771342663,0.039,105200.0,105190.0,1.41747357]
[1750771346343,0.0222,105200.0,105190.0,1.41747357]
[1750771347969,0.0222,105200.0,105190.0,0.91825272]
[1750771347970,0.0397,105200.0,105190.0,0.91825272]
[1750771348201,0.59541491,105200.0,105190.0,1.37595272]
[1750771348420,1.1065191,105200.0,105190.0,0.67874186]
[1750771348662,1.1075191,105200.0,105190.0,0.47874186]
[1750771348874,1.19998905,105200.0,105190.0,0.56176]
[1750771349122,1.1075191,105200.0,105190.0,0.28324]
[1750771349372,1.1075191,105200.0,105190.0,0.46188]
[1750771349806,1.1045191,105200.0,105190.0,0.46188]
[1750771350458,1.1045191,105200.0,105190.0,0.29424]
[1750771352676,1.12524718,105200.0,105190.0,0.40148]
[1750771353384,1.12524718,105200.0,105190.0,0.40048]
[1750771353624,1.12624718,105200.0,105190.0,0.41648]
[1750771354283,1.64394109,105200.0,105190.0,0.41648]
[1750771354486,1.64394109,105200.0,105190.0,0.46648]
[1750771354909,1.64394109,105200.0,105190.0,0.30876]
[1750771355108,1.12624718,105200.0,105190.0,0.30876]
[1750771355317,1.64394109,105200.0,105190.0,0.30876]
[1750771355532,1.64394109,105200.0,105190.0,0.13012]
[1750771355737,1.64394109,105200.0,105190.0,0.075]
[1750771356165,1.12624718,105200.0,105190.0,0.075]
[1750771356864,1.64394109,105200.0,105190.0,0.075]
[1750771357540,1.64394109,105200.0,105190.0,0.02744905]
[1750771357756,1.64394109,105200.0,105190.0,0.009]
[1750771357979,1.64394109,105200.0,105190.0,1e-08]
[1750771358415,0.22613856,105190.0,105180.0,0.23276]
[1750771358634,1.08383247,105190.0,105180.0,0.23276]
[1750771359778,1.08383247,105190.0,105180.0,0.24376]
[1750771359984,1.08483247,105190.0,105180.0,0.25976]
[1750771361676,1.08483247,105190.0,105180.0,0.2038]
[1750771363604,1.08368558,105190.0,105180.0,0.2038]
[1750771364232,1.11224658,105190.0,105180.0,0.2038]
[1750771364407,1.11224658,105190.0,105180.0,0.027]
[1750771365038,1.27228929,105190.0,105180.0,0.02048]
[1750771365274,1.27228929,105190.0,105180.0,0.00652]
[1750771365708,1.08445145,105180.0,105170.0,0.2292]
[1750771365898,1.08445145,105180.0,105170.0,0.3292]
[1750771366103,1.08445145,105180.0,105170.0,0.1]
[1750771366511,1.08445145,105180.0,105150.0,0.28124]
[1750771366512,0.53969551,105160.0,105150.0,0.28124]
[1750771366666,1.05738942,105160.0,105150.0,0.45729778]
[1750771367238,1.05738942,105160.0,105150.0,0.28137778]
[1750771367442,1.05738942,105160.0,105150.0,0.45721778]
[1750771368470,1.05838942,105160.0,105150.0,0.45921778]
[1750771369042,1.05938942,105160.0,105150.0,0.46321778]
[1750771369482,1.05838942,105160.0,105150.0,0.45921778]
[1750771369685,1.05938942,105160.0,105150.0,0.46221778]
[1750771372123,1.06879725,105160.0,105150.0,0.46221778]
[1750771372329,0.88280528,105160.0,105150.0,0.46221778]
[1750771375901,0.88280528,105160.0,105150.0,0.46085778]
[1750771378538,0.37042582,105160.0,105150.0,1.00028409]
[1750771378760,0.91133204,105160.0,105150.0,1.01930345]
[1750771378966,0.71163635,105160.0,105150.0,1.01930345]
[1750771379391,0.71163635,105160.0,105150.0,1.25930345]
[1750771379595,0.36212722,105160.0,105150.0,1.25930345]
[1750771379798,0.35140783,105160.0,105150.0,1.40930345]
[1750771379999,0.01140783,105160.0,105150.0,1.40930345]
[1750771380205,0.002,105160.0,105150.0,1.55930345]
[1750771380542,0.002,105160.0,105150.0,1.89100539]
[1750771380945,0.001,105160.0,105150.0,1.88900539]
[1750771381157,0.70967334,105180.0,105170.0,0.86869244]
[1750771381357,0.70967334,105180.0,105170.0,1.1726743]
[1750771381751,0.70016638,105180.0,105170.0,1.1726743]
[1750771381957,0.71918057,105180.0,105170.0,1.1726743]
[1750771382167,0.8998251,105180.0,105170.0,0.97977847]
[1750771382374,1.08718621,105180.0,105170.0,0.74289856]
[1750771382776,1.08718621,105180.0,105170.0,0.75240688]
[1750771382979,1.08718621,105180.0,105170.0,0.53519502]
[1750771383187,1.08718621,105180.0,105170.0,0.76199502]
[1750771383390,1.06817165,105180.0,105170.0,0.31650186]
[1750771383604,1.06817165,105180.0,105170.0,0.004]
[1750771383743,1.06817165,105180.0,105170.0,0.23068]
[1750771383947,0.72817165,105180.0,105170.0,0.23568]
[1750771384199,1.06817165,105180.0,105170.0,0.23568]
[1750771385254,1.06817165,105180.0,105170.0,0.23572]
[1750771385410,1.10262799,105180.0,105170.0,0.23572]
[1750771385615,1.10263024,105180.0,105170.0,0.23572]
[1750771386389,1.11863024,105180.0,105170.0,0.009]
[1750771386824,1.13317109,105180.0,105170.0,0.009]
[1750771389046,1.16160799,105180.0,105170.0,0.009]
[1750771391086,1.19017399,105180.0,105170.0,1e-08]
[1750771392160,1.18769399,105180.0,105170.0,1e-08]
[1750771392977,0.66963094,105180.0,105170.0,1e-08]
[1750771393212,1.33319585,105180.0,105170.0,1e-08]
[1750771394615,1.37778161,105180.0,105170.0,1e-08]
[1750771394845,1.37778179,105180.0,105170.0,1e-08]
[1750771395048,0.53967652,105170.0,105160.0,0.19243684]
[1750771395262,1.08049816,105170.0,105160.0,0.14487367]
[1750771395602,1.09459816,105170.0,105160.0,0.0973105]
[1750771395731,1.09459816,105170.0,105150.0,0.27941778]
[1750771395732,0.19969551,105160.0,105150.0,0.27941778]
[1750771395943,0.71775856,105160.0,105150.0,0.23185461]
[1750771396149,1.05775856,105160.0,105150.0,0.23185461]
[1750771396356,1.10910773,105160.0,105150.0,0.00013778]
[1750771397955,0.56826451,105160.0,105150.0,0.00013778]
[1750771398163,1.08632756,105160.0,105150.0,0.00013778]
[1750771398625,1.76730466,105160.0,105150.0,0.00013778]
[1750771398823,0.56835535,105150.0,105140.0,0.0022]
[1750771399026,1.73875465,105150.0,105140.0,0.0022]
[1750771399184,1.78875465,105150.0,105140.0,0.0022]
[1750771400227,1.78875465,105150.0,105130.0,0.0002]
[1750771400228,0.55427435,105140.0,105130.0,0.0002]
[1750771400437,1.0723374,105140.0,105130.0,0.0002]
[1750771400645,1.12618071,105140.0,105130.0,0.0002]